fUSD/lending_fUSD_20250120
["ID","MTS","AMOUNT","RATE_DAILY","PERIOD"]
[349732257,1737398712483,-500.0,0.00019968,2]
[349732258,1737398712506,-500.0,0.00019968,2]
[349732259,1737398712527,-500.0,0.00019968,2]
[349732260,1737398712549,-500.0,0.00019968,2]
[349732261,1737398712574,-500.0,0.00019968,2]
[349732262,1737398712596,-500.0,0.00019968,2]
[349732263,1737398712618,-500.0,0.00019968,2]
[349732264,1737398712644,-500.0,0.00019968,2]
[349732265,1737398712667,-500.0,0.00019968,2]
[349732266,1737398712689,-504.52964443,0.00019968,2]
[349732267,1737398712711,-500.0,0.00019968,2]
[349732268,1737398712737,-500.0,0.00019968,2]
[349732269,1737398712762,-500.0,0.00019968,2]
[349732270,1737398712783,-500.0,0.00019968,2]
[349732271,1737398712806,-500.0,0.00019968,2]
[349732272,1737398712827,-500.0,0.00019968,2]
[349732273,1737398712849,-500.0,0.00019968,2]
[349732274,1737398712871,-230.66197717,0.00019968,2]
[349732275,1737398712892,-500.0,0.00019968,2]
[349732276,1737398712915,-500.0,0.00019968,2]
[349732277,1737398712937,-500.0,0.00019968,2]
[349732278,1737398712958,-500.0,0.00019968,2]
[349732279,1737398712981,-91.36334408,0.00019968,2]
[349732319,1737398991757,254.660036,0.00024,120]
[349732320,1737399000561,1083.40915993,0.00020999,120]
[349732342,1737399032261,-500.0,0.00018164,2]
[349732343,1737399032271,-718.40984049,0.00019345,2]
[349732344,1737399032285,-281.59015951,0.00019345,2]
[349732345,1737399032295,-98.05505486,0.00019365,2]
[349732346,1737399032310,-151.94494514,0.00019365,2]
[349732347,1737399032320,-250.0,0.00019441,2]
[349732348,1737399032329,-171.74505486,0.00019515,2]
[349732349,1737399032340,-365.60800355,0.00019515,2]
[349732350,1737399032369,-7959.75226339,0.00019515,2]
[349732351,1737399032379,-1404.29,0.00019515,30]
[349732352,1737399032389,-1375.17,0.00019659,2]
[349732353,1737399032399,-235.36430607,0.000199,2]
[349732354,1737399032408,-500.0,0.00019968,2]
[349732355,1737399032418,-285.42343054,0.00019968,2]
[349732356,1737399032443,-214.57656946,0.00019968,2]
[349732357,1737399032453,-500.0,0.00019968,2]
[349732358,1737399032463,-63.6906615,0.00019968,2]
[349732359,1737399032477,-436.3093385,0.00019968,2]
[349732360,1737399032488,-500.0,0.00019968,2]
[349732361,1737399032499,-419.37,0.00019968,2]
[349732362,1737399032509,-500.0,0.00019968,2]
[349732363,1737399032519,-500.0,0.00019968,2]
[349732364,1737399032530,-500.0,0.00019968,2]
[349732365,1737399032540,-500.0,0.00019968,2]
[349732366,1737399032549,-500.0,0.00019968,2]
[349732367,1737399032559,-500.0,0.00019968,2]
[349732368,1737399032569,-500.0,0.00019968,2]
[349732369,1737399032578,-341.21672188,0.00019968,2]
[349732370,1737399032588,-500.0,0.00019968,2]
[349732371,1737399032598,-500.0,0.00019968,2]
[349732372,1737399032608,-500.0,0.00019968,2]
[349732373,1737399032618,-500.0,0.00019968,2]
[349732374,1737399032627,-436.13,0.00019968,2]
[349732375,1737399032638,-500.0,0.00019968,2]
[349732376,1737399032649,-500.0,0.00019968,2]
[349732377,1737399032665,-500.0,0.00019968,2]
[349732378,1737399032675,-500.0,0.00019968,2]
[349732379,1737399032686,-500.0,0.00019968,2]
[349732380,1737399032696,-500.0,0.00019968,2]
[349732381,1737399032707,-500.0,0.00019968,2]
[349732382,1737399032718,-500.0,0.00019968,2]
[349732383,1737399032728,-500.0,0.00019968,2]
[349732384,1737399032738,-500.0,0.00019968,2]
[349732385,1737399032751,-500.0,0.00019968,2]
[349732386,1737399032760,-500.0,0.00019968,2]
[349732388,1737399032774,-500.0,0.00019968,2]
[349732389,1737399032783,-500.0,0.00019968,2]
[349732390,1737399032794,-500.0,0.00019968,2]
[349732391,1737399032804,-500.0,0.00019968,2]
[349732392,1737399032814,-500.0,0.00019968,2]
[349732393,1737399032824,-500.0,0.00019968,2]
[349732394,1737399032835,-577.46116696,0.00019968,2]
[349732395,1737399032845,-500.0,0.00019968,2]
[349732396,1737399032855,-339.24576233,0.00019968,2]
[349732397,1737399032865,-500.0,0.00019968,2]
[349732398,1737399032874,-500.0,0.00019968,2]
[349732399,1737399032884,-500.0,0.00019968,2]
[349732400,1737399032894,-500.0,0.00019968,2]
[349732401,1737399032904,-500.0,0.00019968,2]
[349732402,1737399032914,-500.0,0.00019968,2]
[349732403,1737399032923,-500.0,0.00019968,2]
[349732404,1737399032933,-500.0,0.00019968,2]
[349732405,1737399032943,-500.0,0.00019968,2]
[349732406,1737399032953,-500.0,0.00019968,2]
[349732407,1737399032963,-500.0,0.00019968,2]
[349732408,1737399032973,-500.0,0.00019968,2]
[349732409,1737399032983,-500.0,0.00019968,2]
[349732410,1737399032993,-500.0,0.00019968,2]
[349732411,1737399033003,-500.0,0.00019968,2]
[349732412,1737399033012,-501.03545457,0.00019968,2]
[349732414,1737399033022,-224.37230184,0.00019968,2]
[349732416,1737399033032,-500.0,0.00019968,2]
[349732418,1737399033057,-414.91158538,0.00019968,2]
[349732420,1737399033067,-500.0,0.00019968,2]
[349732422,1737399033077,-583.71,0.00019968,2]
[349732424,1737399033089,-500.0,0.00019968,2]
[349732426,1737399033099,-500.0,0.00019968,2]
[349732428,1737399033110,-500.0,0.00019968,2]
[349732429,1737399033121,-500.0,0.00019968,2]
[349732431,1737399033131,-500.0,0.00019968,2]
[349732433,1737399033142,-500.0,0.00019968,2]
[349732434,1737399033153,-405.62680949,0.00019968,2]
[349732435,1737399033163,-376.98,0.00019968,2]
[349732436,1737399033174,-503.93658968,0.00019968,2]
[349732437,1737399033185,-500.0,0.00019968,2]
[349732438,1737399033196,-500.0,0.00019968,2]
[349732439,1737399033208,-500.0,0.00019968,2]
[349732440,1737399033220,-500.0,0.00019968,2]
[349732441,1737399033231,-500.0,0.00019968,2]
[349732442,1737399033240,-500.0,0.00019968,2]
[349732443,1737399033250,-500.0,0.00019968,2]
[349732444,1737399033261,-500.0,0.00019968,2]
[349732445,1737399033273,-500.0,0.00019968,2]
[349732446,1737399033284,-500.0,0.00019968,2]
[349732447,1737399033295,-500.0,0.00019968,2]
[349732448,1737399033307,-500.0,0.00019968,2]
[349732449,1737399033320,-500.0,0.00019968,2]
[349732450,1737399033331,-500.0,0.00019968,2]
[349732451,1737399033343,-500.0,0.00019968,2]
[349732452,1737399033355,-500.0,0.00019968,2]
[349732453,1737399033367,-500.0,0.00019968,2]
[349732454,1737399033378,-235.36430594,0.00019969,2]
[349732455,1737399033390,-10218.23080506,0.00019988,2]
[349732456,1737399033402,-1504.45911584,0.0002,5]
[349732457,1737399033477,-3958.54088416,0.0002,5]
[349732458,1737399033487,-235.36430594,0.00020038,2]
[349732459,1737399033498,-500.0,0.0002007,2]
[349732460,1737399033508,-235.36430594,0.00020107,2]
[349732461,1737399033518,-518.7289,0.00020142,2]
[349732462,1737399033528,-1000.0,0.0002017,2]
[349732463,1737399033538,-235.36430594,0.00020176,2]
[349732464,1737399033549,-500.0,0.00020242,2]
[349732465,1737399033558,-500.0,0.00020242,2]
[349732466,1737399033567,-500.0,0.00020242,2]
[349732467,1737399033578,-500.0,0.00020242,2]
[349732468,1737399033588,-500.0,0.00020242,2]
[349732469,1737399033598,-500.0,0.00020242,2]
[349732470,1737399033609,-500.0,0.00020242,2]
[349732471,1737399033620,-500.0,0.00020242,2]
[349732472,1737399033632,-500.0,0.00020242,2]
[349732473,1737399033644,-500.0,0.00020242,2]
[349732474,1737399033659,-394.92,0.00020242,2]
[349732475,1737399033671,-445.73006779,0.00020242,2]
[349732476,1737399033689,-54.26993221,0.00020242,2]
[349732477,1737399033702,-500.0,0.00020242,2]
[349732478,1737399033714,-500.0,0.00020242,2]
[349732479,1737399033726,-500.0,0.00020242,2]
[349732480,1737399033737,-500.0,0.00020242,2]
[349732481,1737399033749,-253.46,0.00020242,2]
[349732482,1737399033760,-300.30284866,0.00020242,2]
[349732483,1737399033775,-500.0,0.00020242,2]
[349732484,1737399033785,-500.0,0.00020242,2]
[349732485,1737399033797,-500.0,0.00020242,2]
[349732486,1737399033807,-532.47,0.00020242,2]
[349732487,1737399033818,-500.0,0.00020242,2]
[349732488,1737399033828,-500.0,0.00020242,2]
[349732489,1737399033839,-500.0,0.00020242,2]
[349732490,1737399033849,-500.0,0.00020242,2]
[349732491,1737399033860,-500.0,0.00020242,2]
[349732492,1737399033872,-500.0,0.00020242,2]
[349732493,1737399033883,-500.0,0.00020242,2]
[349732494,1737399033894,-500.0,0.00020242,2]
[349732495,1737399033905,-500.0,0.00020242,2]
[349732496,1737399033916,-500.0,0.00020242,2]
[349732497,1737399033927,-228.22217138,0.00020242,2]
[349732498,1737399033938,-500.0,0.00020242,2]
[349732499,1737399033950,-583.71,0.00020242,2]
[349732500,1737399033961,-500.0,0.00020242,2]
[349732501,1737399033972,-187.51,0.00020242,2]
[349732502,1737399033983,-500.0,0.00020242,2]
[349732503,1737399033994,-500.0,0.00020242,2]
[349732504,1737399034004,-500.0,0.00020242,2]
[349732505,1737399034014,-500.0,0.00020242,2]
[349732506,1737399034026,-278.02731597,0.00020242,2]
[349732507,1737399034037,-500.0,0.00020242,2]
[349732508,1737399034049,-500.0,0.00020242,2]
[349732509,1737399034059,-500.0,0.00020242,2]
[349732510,1737399034071,-500.0,0.00020242,2]
[349732511,1737399034082,-500.0,0.00020242,2]
[349732512,1737399034093,-500.0,0.00020242,2]
[349732513,1737399034103,-558.43,0.00020242,2]
[349732514,1737399034115,-500.0,0.00020242,2]
[349732515,1737399034124,-500.0,0.00020242,2]
[349732516,1737399034135,-500.0,0.00020242,2]
[349732517,1737399034145,-1318.4,0.00020242,2]
[349732518,1737399034156,-635.253097,0.00020242,2]
[349732519,1737399034166,-500.0,0.00020242,2]
[349732520,1737399034177,-500.0,0.00020242,2]
[349732521,1737399034188,-1008.62,0.00020242,2]
[349732522,1737399034199,-500.0,0.00020242,2]
[349732523,1737399034210,-578.399252,0.00020242,2]
[349732524,1737399034220,-500.0,0.00020242,2]
[349732525,1737399034231,-500.0,0.00020242,2]
[349732526,1737399034242,-500.0,0.00020242,2]
[349732527,1737399034252,-155.67239,0.00020242,2]
[349732528,1737399034262,-500.0,0.00020242,2]
[349732529,1737399034272,-2358.81,0.00020242,2]
[349732530,1737399034282,-533.35,0.00020242,2]
[349732531,1737399034503,-933.86,0.00020242,2]
[349732532,1737399034515,-500.0,0.00020242,2]
[349732533,1737399034525,-500.0,0.00020242,2]
[349732534,1737399034535,-500.0,0.00020242,2]
[349732535,1737399034545,-500.0,0.00020242,2]
[349732536,1737399034556,-500.0,0.00020242,2]
[349732537,1737399034566,-1352.38,0.00020242,2]
[349732538,1737399034576,-2571.45,0.00020242,2]
[349732539,1737399034587,-500.0,0.00020242,2]
[349732540,1737399034597,-500.0,0.00020242,2]
[349732541,1737399034607,-861.81,0.00020242,2]
[349732542,1737399034617,-500.0,0.00020242,2]
[349732543,1737399034628,-1523.68,0.00020242,2]
[349732544,1737399034638,-674.85,0.00020242,2]
[349732545,1737399034650,-774.35,0.00020242,2]
[349732546,1737399034665,-1641.03,0.00020242,2]
[349732547,1737399034677,-602.69,0.00020242,2]
[349732548,1737399034689,-1678.19,0.00020242,2]
[349732549,1737399034702,-1671.81,0.00020242,2]
[349732550,1737399034715,-500.0,0.00020242,2]
[349732551,1737399034728,-500.0,0.00020242,2]
[349732552,1737399034740,-1177.66,0.00020242,2]
[349732553,1737399034752,-938.64,0.00020242,2]
[349732554,1737399034765,-550.37,0.00020242,2]
[349732555,1737399034779,-500.0,0.00020242,2]
[349732556,1737399034791,-958.35,0.00020242,2]
[349732557,1737399034824,-581.0,0.00020242,2]
[349732558,1737399034835,-748.32,0.00020242,2]
[349732559,1737399034846,-1857.06,0.00020242,2]
[349732560,1737399034856,-1483.0,0.00020242,2]
[349732561,1737399034867,-500.0,0.00020242,2]
[349732562,1737399034877,-500.0,0.00020242,2]
[349732563,1737399034887,-500.0,0.00020242,2]
[349732564,1737399034897,-1134.35,0.00020242,2]
[349732565,1737399034907,-500.0,0.00020242,2]
[349732566,1737399034918,-679.2,0.00020242,2]
[349732567,1737399034928,-541.36,0.00020242,2]
[349732568,1737399034938,-500.0,0.00020242,2]
[349732569,1737399034947,-383.68364992,0.00020242,2]
[349732570,1737399034957,-500.0,0.00020242,2]
[349732572,1737399034967,-500.0,0.00020242,2]
[349732573,1737399034978,-190.261934,0.00020242,2]
[349732574,1737399034988,-500.0,0.00020242,2]
[349732576,1737399034998,-500.0,0.00020242,2]
[349732577,1737399035009,-500.0,0.00020242,2]
[349732578,1737399035019,-500.0,0.00020242,2]
[349732579,1737399035029,-2362.41628212,0.00020242,2]
[349732580,1737399036207,-6.61371788,0.00020242,2]
[349732581,1737399036217,-337.01504682,0.00020242,2]
[349732588,1737399038339,-845.63,0.00019276,2]
[349732589,1737399038349,-376.91896327,0.00020242,2]
[349732915,1737399042060,-253.63371253,0.00020242,2]
[349732928,1737399042289,-104.00227738,0.00020242,2]
[349732929,1737399042299,-1212.23,0.00020242,2]
[349732930,1737399042308,-504.21,0.00020242,2]
[349732931,1737399042317,-267.47270594,0.00020242,2]
[349732932,1737399042336,-195.24237406,0.00020242,2]
[349732933,1737399042346,-500.0,0.00020242,2]
[349732934,1737399042355,-668.44,0.00020242,2]
[349732935,1737399042365,-500.0,0.00020242,2]
[349732936,1737399042375,-500.0,0.00020242,2]
[349732937,1737399042384,-500.0,0.00020242,2]
[349732938,1737399042393,-500.0,0.00020242,2]
[349732939,1737399042402,-500.0,0.00020242,2]
[349732940,1737399042412,-527.97,0.00020242,2]
[349732941,1737399042421,-701.47,0.00020242,2]
[349732942,1737399042431,-500.0,0.00020242,2]
[349732943,1737399042439,-500.0,0.00020242,2]
[349732944,1737399042449,-3169.67,0.00020242,2]
[349732945,1737399042458,-1281.41,0.00020242,2]
[349732946,1737399042467,-1838.19,0.00020242,2]
[349732947,1737399042477,-500.0,0.00020242,2]
[349732948,1737399042486,-500.0,0.00020242,2]
[349732949,1737399042496,-2207.03,0.00020242,2]
[349732950,1737399042505,-881.52,0.00020242,2]
[349732951,1737399042514,-500.0,0.00020242,2]
[349732952,1737399042523,-328.69053406,0.00020242,2]
[349732953,1737399042532,-500.0,0.00020242,2]
[349732954,1737399042542,-235.36430594,0.00020245,2]
[349732955,1737399042551,-4362.12547277,0.00020285,2]
[349732956,1737399042561,-151.0,0.00020291,2]
[349732957,1737399042570,-235.36430594,0.00020314,2]
[349732958,1737399042582,-500.0,0.00020356,2]
[349732959,1737399042591,-235.36430594,0.00020383,2]
[349732960,1737399042600,-15547.56340326,0.000204,2]
[349732961,1737399042610,-235.36430594,0.00020452,2]
[349732962,1737399042619,-500.0,0.00020516,2]
[349732963,1737399042628,-500.0,0.00020516,2]
[349732964,1737399042638,-500.0,0.00020516,2]
[349732965,1737399042647,-500.0,0.00020516,2]
[349732966,1737399042659,-500.0,0.00020516,2]
[349732967,1737399042670,-500.0,0.00020516,2]
[349732968,1737399042680,-500.0,0.00020516,2]
[349732969,1737399042689,-500.0,0.00020516,2]
[349732970,1737399042701,-331.47,0.00020516,2]
[349732971,1737399042710,-500.0,0.00020516,2]
[349732972,1737399042720,-500.0,0.00020516,2]
[349732973,1737399042729,-207.78831683,0.00020516,2]
[349732974,1737399042738,-500.0,0.00020516,2]
[349732975,1737399042748,-500.0,0.00020516,2]
[349732976,1737399042757,-500.0,0.00020516,2]
[349732977,1737399042767,-500.0,0.00020516,2]
[349732978,1737399042778,-500.0,0.00020516,2]
[349732979,1737399042788,-301.96,0.00020516,2]
[349732980,1737399042797,-500.0,0.00020516,2]
[349732981,1737399042807,-603.13,0.00020516,2]
[349732982,1737399042817,-500.0,0.00020516,2]
[349732983,1737399042827,-500.0,0.00020516,2]
[349732984,1737399042837,-500.0,0.00020516,2]
[349732985,1737399042847,-500.0,0.00020516,2]
[349732986,1737399042856,-583.71,0.00020516,2]
[349732987,1737399042865,-500.0,0.00020516,2]
[349732988,1737399042875,-500.0,0.00020516,2]
[349732989,1737399042885,-514.03,0.00020516,2]
[349732990,1737399042894,-500.0,0.00020516,2]
[349732991,1737399042904,-500.0,0.00020516,2]
[349732992,1737399042913,-500.0,0.00020516,2]
[349732993,1737399042923,-500.0,0.00020516,2]
[349732994,1737399042932,-500.0,0.00020516,2]
[349732995,1737399042941,-500.0,0.00020516,2]
[349732996,1737399042951,-500.0,0.00020516,2]
[349732997,1737399042960,-1318.4,0.00020516,2]
[349732998,1737399042969,-500.0,0.00020516,2]
[349732999,1737399042979,-500.0,0.00020516,2]
[349733000,1737399042989,-1008.62,0.00020516,2]
[349733001,1737399042999,-500.0,0.00020516,2]
[349733002,1737399043009,-578.399252,0.00020516,2]
[349733003,1737399043018,-500.0,0.00020516,2]
[349733005,1737399043028,-500.0,0.00020516,2]
[349733007,1737399043037,-2358.81,0.00020516,2]
[349733009,1737399043047,-533.35,0.00020516,2]
[349733010,1737399043057,-933.86,0.00020516,2]
[349733011,1737399043067,-500.0,0.00020516,2]
[349733012,1737399043076,-500.0,0.00020516,2]
[349733013,1737399043086,-500.0,0.00020516,2]
[349733014,1737399043095,-500.0,0.00020516,2]
[349733016,1737399043105,-500.0,0.00020516,2]
[349733018,1737399043115,-1352.38,0.00020516,2]
[349733020,1737399043124,-2571.45,0.00020516,2]
[349733021,1737399043134,-500.0,0.00020516,2]
[349733022,1737399043143,-500.0,0.00020516,2]
[349733023,1737399043153,-861.81,0.00020516,2]
[349733024,1737399043162,-500.0,0.00020516,2]
[349733025,1737399043172,-447.83879323,0.00020516,2]
[349733026,1737399043185,-1075.84120677,0.00020516,2]
[349733027,1737399043194,-674.85,0.00020516,2]
[349733028,1737399043205,-774.35,0.00020516,2]
[349733029,1737399043215,-1641.03,0.00020516,2]
[349733030,1737399043224,-602.69,0.00020516,2]
[349733031,1737399043234,-1678.19,0.00020516,2]
[349733032,1737399043244,-1671.81,0.00020516,2]
[349733033,1737399043253,-500.0,0.00020516,2]
[349733034,1737399043263,-500.0,0.00020516,2]
[349733035,1737399043273,-1177.66,0.00020516,2]
[349733036,1737399043282,-938.64,0.00020516,2]
[349733037,1737399043291,-550.37,0.00020516,2]
[349733038,1737399043301,-500.0,0.00020516,2]
[349733039,1737399043311,-958.35,0.00020516,2]
[349733040,1737399043320,-581.0,0.00020516,2]
[349733041,1737399043331,-748.32,0.00020516,2]
[349733042,1737399043340,-1857.06,0.00020516,2]
[349733043,1737399043350,-1483.0,0.00020516,2]
[349733044,1737399043359,-500.0,0.00020516,2]
[349733045,1737399043369,-500.0,0.00020516,2]
[349733046,1737399043378,-500.0,0.00020516,2]
[349733047,1737399043388,-1134.35,0.00020516,2]
[349733048,1737399043397,-679.2,0.00020516,2]
[349733049,1737399043406,-541.36,0.00020516,2]
[349733050,1737399043416,-597.92,0.00020516,2]
[349733051,1737399043426,-500.0,0.00020516,2]
[349733052,1737399043435,-500.0,0.00020516,2]
[349733053,1737399043444,-500.0,0.00020516,2]
[349733054,1737399043454,-500.0,0.00020516,2]
[349733055,1737399043463,-2369.03,0.00020516,2]
[349733056,1737399043472,-1071.57,0.00020516,2]
[349733057,1737399043482,-1212.23,0.00020516,2]
[349733058,1737399043492,-504.21,0.00020516,2]
[349733059,1737399043501,-462.71508,0.00020516,2]
[349733060,1737399043510,-500.0,0.00020516,2]
[349733061,1737399043519,-668.44,0.00020516,2]
[349733062,1737399043528,-500.0,0.00020516,2]
[349733063,1737399043538,-500.0,0.00020516,2]
[349733064,1737399043547,-411.95686223,0.00020516,2]
[349733065,1737399043556,-500.0,0.00020516,2]
[349733066,1737399043566,-527.97,0.00020516,2]
[349733067,1737399043578,-701.47,0.00020516,2]
[349733068,1737399043589,-500.0,0.00020516,2]
[349733069,1737399043599,-500.0,0.00020516,2]
[349733070,1737399043608,-3169.67,0.00020516,2]
[349733071,1737399043618,-1281.41,0.00020516,2]
[349733072,1737399043628,-1838.19,0.00020516,2]
[349733073,1737399043637,-500.0,0.00020516,2]
[349733074,1737399043647,-2207.03,0.00020516,2]
[349733075,1737399043658,-881.52,0.00020516,2]
[349733076,1737399043668,-500.0,0.00020516,2]
[349733077,1737399043678,-500.0,0.00020516,2]
[349733078,1737399043690,-538.8611,0.00020517,2]
[349733079,1737399043700,-235.36430594,0.00020521,2]
[349733080,1737399043710,-204.14,0.00020523,2]
[349733081,1737399043720,-235.36430594,0.0002059,2]
[349733082,1737399043729,-500.0,0.00020617,2]
[349733083,1737399043739,-500.0,0.00020617,2]
[349733084,1737399043748,-500.0,0.00020617,2]
[349733085,1737399043758,-729.77,0.00020617,2]
[349733086,1737399043769,-500.0,0.00020617,2]
[349733087,1737399043779,-500.0,0.00020617,2]
[349733088,1737399043788,-500.0,0.00020617,2]
[349733089,1737399043798,-500.0,0.00020617,2]
[349733090,1737399043807,-500.0,0.00020617,2]
[349733091,1737399043817,-500.0,0.00020617,2]
[349733092,1737399043828,-500.0,0.00020617,2]
[349733093,1737399043837,-500.0,0.00020617,2]
[349733094,1737399043847,-500.0,0.00020617,2]
[349733095,1737399043857,-483.75833128,0.00020617,2]
[349733096,1737399043867,-528.75864495,0.00020617,2]
[349733097,1737399043876,-500.0,0.00020617,2]
[349733098,1737399043886,-500.0,0.00020617,2]
[349733099,1737399043895,-500.0,0.00020617,2]
[349733100,1737399043905,-500.0,0.00020617,2]
[349733101,1737399043915,-418.48383812,0.00020617,2]
[349733102,1737399043925,-500.0,0.00020617,2]
[349733103,1737399043934,-500.0,0.00020617,2]
[349733104,1737399043944,-500.0,0.00020617,2]
[349733105,1737399043954,-500.0,0.00020617,2]
[349733106,1737399043963,-500.0,0.00020617,2]
[349733107,1737399043973,-500.0,0.00020617,2]
[349733108,1737399043983,-500.0,0.00020617,2]
[349733109,1737399043992,-500.0,0.00020617,2]
[349733110,1737399044001,-500.0,0.00020617,2]
[349733111,1737399044011,-500.0,0.00020617,2]
[349733112,1737399044021,-500.0,0.00020617,2]
[349733113,1737399044030,-500.0,0.00020617,2]
[349733114,1737399044039,-500.0,0.00020617,2]
[349733115,1737399044049,-500.0,0.00020617,2]
[349733116,1737399044059,-500.0,0.00020617,2]
[349733117,1737399044068,-500.0,0.00020617,2]
[349733118,1737399044080,-500.0,0.00020617,2]
[349733119,1737399044090,-500.0,0.00020617,2]
[349733120,1737399044099,-500.0,0.00020617,2]
[349733121,1737399044109,-500.0,0.00020617,2]
[349733122,1737399044118,-581.87275984,0.00020617,2]
[349733123,1737399044128,-500.0,0.00020617,2]
[349733124,1737399044137,-500.0,0.00020617,2]
[349733125,1737399044147,-500.0,0.00020617,2]
[349733126,1737399044156,-500.0,0.00020617,2]
[349733127,1737399044166,-500.0,0.00020617,2]
[349733128,1737399044176,-500.0,0.00020617,2]
[349733129,1737399044186,-331.35263455,0.00020617,2]
[349733130,1737399044195,-500.0,0.00020617,2]
[349733131,1737399044204,-500.0,0.00020617,2]
[349733132,1737399044214,-500.0,0.00020617,2]
[349733133,1737399044224,-500.0,0.00020617,2]
[349733134,1737399044233,-500.0,0.00020617,2]
[349733135,1737399044243,-528.1,0.00020617,2]
[349733136,1737399044252,-500.0,0.00020617,2]
[349733137,1737399044262,-500.0,0.00020617,2]
[349733138,1737399044272,-500.0,0.00020617,2]
[349733139,1737399044281,-500.0,0.00020617,2]
[349733140,1737399044291,-500.0,0.00020617,2]
[349733141,1737399044300,-500.0,0.00020617,2]
[349733142,1737399044310,-500.0,0.00020617,2]
[349733143,1737399044319,-500.0,0.00020617,2]
[349733144,1737399044331,-504.54,0.00020617,2]
[349733145,1737399044340,-500.0,0.00020617,2]
[349733146,1737399044349,-500.0,0.00020617,2]
[349733147,1737399044358,-500.0,0.00020617,2]
[349733148,1737399044367,-580.3297823,0.00020617,2]
[349733149,1737399044377,-500.0,0.00020617,2]
[349733150,1737399044387,-832.48,0.00020617,2]
[349733151,1737399044396,-1255.8,0.00020617,2]
[349733152,1737399044405,-500.0,0.00020617,2]
[349733153,1737399044414,-500.0,0.00020617,2]
[349733154,1737399044423,-500.0,0.00020617,2]
[349733155,1737399044432,-500.0,0.00020617,2]
[349733156,1737399044442,-3950.29,0.00020617,2]
[349733157,1737399044451,-500.0,0.00020617,2]
[349733158,1737399044460,-668.06,0.00020617,2]
[349733159,1737399044469,-500.0,0.00020617,2]
[349733160,1737399044478,-500.0,0.00020617,2]
[349733161,1737399044487,-500.0,0.00020617,2]
[349733162,1737399044496,-1294.13,0.00020617,2]
[349733163,1737399044506,-500.0,0.00020617,2]
[349733164,1737399044516,-1841.67,0.00020617,2]
[349733165,1737399044525,-500.0,0.00020617,2]
[349733166,1737399044534,-500.0,0.00020617,2]
[349733167,1737399044543,-500.0,0.00020617,2]
[349733168,1737399044552,-500.0,0.00020617,2]
[349733169,1737399044561,-806.05,0.00020617,2]
[349733170,1737399044570,-602.63,0.00020617,2]
[349733171,1737399044582,-500.0,0.00020617,2]
[349733172,1737399044591,-500.0,0.00020617,2]
[349733173,1737399044600,-1017.1,0.00020617,2]
[349733174,1737399044609,-949.39,0.00020617,2]
[349733175,1737399044619,-500.0,0.00020617,2]
[349733176,1737399044628,-500.0,0.00020617,2]
[349733177,1737399044637,-1940.78,0.00020617,2]
[349733178,1737399044646,-500.0,0.00020617,2]